[Event "Karel Janecek Open 2025"]
[Site "Prague"]
[Date "2025.03.07"]
[Round "9.6"]
[White "Stork, Oliver"]
[Black "Raja Rithvik R"]
[Result "0-1"]
[Annotator "TA"]
[ECO "A06"]
[WhiteElo "2395"]
[BlackElo "2522"]
[PlyCount "70"]
[EventDate "2025.02.21"]
[EventType "swiss"]
[EventCountry "CZE"]
[SourceTitle "playchess.com"]
[Source "ChessBase"]
[SourceQuality "1"]
[TimeControl "40/5400+30:1800+30"]

{[%evp 13,69,5,26,6,0,0,0,0,0,0,0,0,17,14,1,0,36,35,35,29,37,25,33,20,28,21,31,31,94,0,0,-12,-10,-16,0,0,0,0,0,0,0,0,23,25,138,173,133,49,101,0,0,-881,-870,-29997,-29998,-29998,-29999,-29999]} 1. b3 {[%emt 0:07:05]} d5 {[%emt 0:02:07]} 2. Bb2 {[%emt 0:00:08]} Nf6 {[%emt 0:00:53]} 3. Nf3 {[%emt 0:00:12]} Bf5 {[%emt 0:04:43]} 4. Nh4 {[%emt 0:00:28]} Bc8 {[%emt 0:05:02]} 5. Nf3 {[%emt 0:00:08]} Bg4 {[%emt 0:00:40]} 6. e3 {[%emt 0:09:35]} e6 {[%emt 0:03:27]} 7. h3 {[%emt 0:00:50]} Bh5 {[%emt 0:00:05]} 8. g4 {[%emt 0:03:48] A06: Réti Opening: 1 Nf3 d5.} Bg6 {[%emt 0:00:06]} 9. Ne5 {[%emt 0:00:26] The old main line.} Nbd7 {[%emt 0:00:38]} 10. Nxg6 {[%emt 0:00:16] The position is equal.} hxg6 {[%emt 0:00:04]} 11. Bg2 {[%emt 0:00:38]} g5 {[%emt 0:07:53]} 12. d3 $1 {[%emt 0:14:21]} Bd6 {[%emt 0:00:28]} 13. Nd2 {[%emt 0:00:08]} Ne5 {[%emt 0:00:04]} 14. Qe2 {[%emt 0:09:22]} Ng6 {[%emt 0:22:47]} 15. Nf3 {[%emt 0:00:44]} Nh4 {[%emt 0:00:40]} 16. Nxh4 {[%emt 0:02:22]} Rxh4 {[%emt 0:00:14]} 17. Rf1 $146 {[%emt 0:17:35]} (17. O-O-O Qe7 18. Qd2 O-O-O 19. f4 Ba3 20. fxg5 Bxb2+ 21. Kxb2 Nd7 22. e4 d4 23. Qf2 Qxg5 24. Qxd4 Nb6 25. Qf2 {0-1 Mrithyunjay,M (1867)-Bodrogi,B (2353) Wch U20 61st 2024 (6)}) 17... Qe7 {[%emt 0:07:18]} 18. f4 {[%emt 0:10:14]} gxf4 {[%emt 0:00:55]} 19. exf4 {[%emt 0:00:05]} Ba3 {[%emt 0:12:32]} 20. O-O-O {[%emt 0:05:51]} a5 {[%emt 0:00:21]} (20... Bxb2+ $14 21. Kxb2 c6) 21. c4 {[%emt 0:00:07]} (21. Bxa3 $16 Qxa3+ 22. Kb1) 21... a4 $11 {[%emt 0:01:57]} 22. Bxa3 {[%emt 0:01:41]} Qxa3+ {[%emt 0:01:21]} 23. Qb2 {[%emt 0:00:03]} axb3 {[%emt 0:07:54]} 24. axb3 {[%emt 0:00:07]} Qd6 {[%emt 0:01:41]} 25. Kc2 {[%emt 0:02:44]} Kf8 {[%emt 0:01:33]} 26. Ra1 {[%emt 0:01:10]} Rd8 {[%emt 0:00:18] Strongly threatening ...dxc4.} (26... Rxa1 $5 27. Qxa1 Nxg4 $11) 27. Qe5 {[%emt 0:01:58]} Qb6 {[%emt 0:02:23]} 28. f5 {[%emt 0:02:47]} Rxg4 {[%emt 0:08:09]} 29. hxg4 $16 {[%emt 0:00:52]} Nxg4 {[%emt 0:00:04]} 30. Qf4 {[%emt 0:05:00]} (30. Qc3 $1 $16) 30... Ne3+ {[%emt 0:00:34] [#]} (30... dxc4 $1 $14 31. Kc1 (31. Qxg4 Qxb3+ 32. Kc1 Qc3+ 33. Kb1 Qxd3+ 34. Kb2 Qb3+ 35. Kc1 Qc3+ 36. Kb1 Qd3+ 37. Kb2 c3+ 38. Kb3 c2+ 39. Kb2 c1=Q+ 40. Rfxc1 Qb5+ 41. Kc2 Qc5+ 42. Kb1 Qb5+ 43. Kc2 Qc5+ 44. Kb1 Qb6+ 45. Kc2 Qc5+ $11) 31... e5) 31. Kc3 {[%emt 0:00:31]} (31. Kd2 $1 $16 Nxf1+ (31... Nxg2 32. Qg5 $16) 32. Rxf1 (32. Bxf1 dxc4 33. fxe6 Qb4+ 34. Ke3 Qb6+ 35. Kf3 Qxe6 $14) 32... Qa5+ 33. Ke2 Qa2+ 34. Qd2 Qxd2+ 35. Kxd2) 31... d4+ $11 {[%emt 0:01:02]} 32. Kd2 $2 {[%emt 0:02:00][%mdl 8192] [#]} (32. Kb2 $11 Qb4 33. Ra4 Qd2+ 34. Ka3) 32... Qxb3 $1 $19 {[%emt 0:00:23] ( -> ...Qc2+)} (32... Nxg2 $2 {loses.} 33. Qg5 f6 (33... Qb4+ $2 34. Ke2 $18) 34. fxe6 $18 (34. Qxg2 Qxb3 35. Ke1 Qxd3 $16)) 33. Rf2 {[%emt 0:02:22]} Qb2+ {[%emt 0:00:08] Black mates.} 34. Ke1 {[%emt 0:00:07]} Qxa1+ {[%emt 0:00:04]} 35. Ke2 {[%emt 0:00:03]} Qd1# {[%emt 0:00:04] Weighted Error Value: White=0.59/Black=0.16 (very precise)   Loses game:     	White=1     	---        Mistake:       	White=3     	Black=3      Inaccurate:     	White=1     	Black=1      OK:         	White=6     	Black=8      Best:        	White=2     	Black=3      Strong:       	White=1     	Black=1} 0-1

[Event "Karel Janecek Open 2025"]
[Site "Prague"]
[Date "2025.03.07"]
[Round "9.7"]
[White "Urazayev, Arystanbek"]
[Black "Santamaria Fernandez, Guillermo"]
[Result "1-0"]
[Annotator "TA"]
[ECO "B15"]
[WhiteElo "2467"]
[BlackElo "2225"]
[PlyCount "119"]
[EventDate "2025.02.21"]
[EventType "swiss"]
[EventCountry "CZE"]
[SourceTitle "playchess.com"]
[Source "ChessBase"]
[SourceQuality "1"]
[TimeControl "40/5400+30:1800+30"]

{[%evp 16,119,20,17,13,19,19,6,3,0,14,11,13,5,8,17,22,20,27,5,22,0,0,-43,-16,-35,-17,-19,-29,-14,-9,-8,-17,-16,-22,-17,-10,-14,-4,-24,179,187,183,185,205,162,178,167,169,164,162,163,143,142,433,91,85,22,83,20,20,0,92,73,108,108,113,114,112,112,116,122,139,100,323,298,335,336,336,336,325,325,288,274,247,231,530,249,517,279,722,714,707,704,489,506,1509,1477,729,601,5129,4982,4133,3193,29994,29995]} 1. e4 {[%emt 0:00:01]} c6 {[%emt 0:00:18]} 2. Nc3 {[%emt 0:00:06]} d5 {[%emt 0:00:07]} 3. Nf3 {[%emt 0:00:04]} g6 {[%emt 0:01:28]} 4. d4 {[%emt 0:03:22]} Bg7 {[%emt 0:00:30]} 5. h3 {[%emt 0:01:17]} dxe4 {[%emt 0:00:17]} 6. Nxe4 {[%emt 0:00:06]} Nf6 {[%emt 0:00:14]} 7. Nxf6+ {[%emt 0:01:51]} exf6 {[%emt 0:00:09]} 8. Bc4 {[%emt 0:01:52] The main line 8.Bc4 scores better than 8.Bd3.} O-O {[%emt 0:01:43]} 9. O-O {[%emt 0:00:10] Active counter play!} a5 {[%emt 0:01:06] B15: Caro-Kann: 3 Nc3: 3...g6 and 3...dxe4 4 Nxe4 Nf6 5 Nxf6+ exf6.} 10. Re1 {[%emt 0:03:49]} Na6 {[%emt 0:01:31][%cal Bb8a6,Ba6c7,Bc7d5,Bd5e7,Be7f5][%mdl 32]} 11. Bf4 {[%emt 0:10:51]} Nc7 {[%emt 0:02:41] The position is equal.} 12. Bg3 {[%emt 0:02:21]} Nd5 {[%emt 0:03:29]} 13. Bf1 {[%emt 0:03:28]} Be6 {[%emt 0:08:00]} 14. c4 {[%emt 0:00:32]} Ne7 {[%emt 0:02:00]} 15. Qd2 {[%emt 0:08:06]} Qd7 {[%emt 0:04:08]} 16. Rad1 {[%emt 0:00:42]} Rfd8 {[%emt 0:02:43]} 17. Bh2 $146 {[%emt 0:17:46]} (17. b3 Bf8 18. a4 Nf5 19. Qb2 Bb4 20. Re2 Nxg3 21. fxg3 Qc7 22. g4 {0-1 Izeta Txabarri,F (2452)-Domingo Nunez,R (2384) Titled Tuesday intern op 20th Dec Early blitz 2022 (3)}) 17... h5 {[%emt 0:03:41]} 18. Qe2 {[%emt 0:01:41][%cal Od4d5]} Nf5 {[%emt 0:04:53]} 19. h4 {[%emt 0:03:27]} Bh6 {[%emt 0:08:47]} 20. Qc2 {[%emt 0:00:48]} a4 {[%emt 0:12:22]} 21. Qc3 {[%emt 0:03:46]} Bf8 {[%emt 0:10:30]} 22. Bf4 {[%emt 0:02:57][%cal Bh2f4,Bf4e3,Be3c5][%mdl 32]} b5 {[%emt 0:01:32]} 23. d5 {[%emt 0:15:20]} cxd5 {[%emt 0:01:06]} 24. cxb5 {[%emt 0:00:10]} Rdc8 {[%emt 0:07:57] Against b6} 25. Qd2 {[%emt 0:00:58]} Bc5 {[%emt 0:00:52] Prevents Nd4} 26. Bd3 $1 {[%emt 0:02:46]} Nd6 {[%emt 0:01:49]} 27. Be3 {[%emt 0:04:14]} (27. Bxd6 {feels hotter.} Qxd6 28. Qh6 Rc7 29. Re2) 27... Qa7 {[%emt 0:08:59]} (27... Bg4 $11) 28. Bxc5 $1 $18 {[%emt 0:01:06]} (28. Bxg6 $6 Bxe3 (28... fxg6 $2 29. Bxc5 Qxc5 30. Rxe6 $18) 29. Qxe3 (29. Rxe3 Nc4 $14) 29... Qxe3 30. Rxe3 Nxb5 $14) 28... Qxc5 {[%emt 0:00:16] [#]} 29. Bxg6 {[%emt 0:01:25][%mdl 512]} Kg7 {[%emt 0:07:10] Prevents Qh6+.} 30. Bd3 {[%emt 0:01:36]} (30. Bxh5 $6 Ne4 31. Qd4 Qxb5 $16) 30... Bg4 {[%emt 0:00:54]} 31. Qf4 $1 {[%emt 0:01:17] Dodges Nc4} Nxb5 {[%emt 0:01:07]} 32. Bxb5 {[%emt 0:03:41]} Qxb5 {[%emt 0:00:07]} 33. Nd4 $1 {[%emt 0:01:06]} Qb8 {[%emt 0:01:10]} 34. Nf5+ {[%emt 0:03:13]} Kg8 $2 {[%emt 0:00:13][%mdl 8192]} (34... Bxf5 $16 35. Qxf5 Qxb2) 35. Ne7+ $2 {[%emt 0:01:16]} (35. Nd6 $1 $18 {[%cal Of4f6] is the precise move to win.} Bxd1 36. Qxf6 (36. Rxd1 Qxb2 37. Qg3+ Kf8 $16)) 35... Kg7 $16 {[%emt 0:00:16] [#]} 36. Qd4 {[%emt 0:00:33]} (36. Qe3 $1 $16) 36... Bxd1 {[%emt 0:01:57]} (36... Rc2 $1 $11) 37. Nf5+ {[%emt 0:00:19] Some like it hot} (37. Nxc8 $16 {Re8 would now be deadly.} Bg4 38. Ne7) 37... Kg6 $1 $11 {[%emt 0:00:19]} (37... Kh7 38. Qxf6 (38. Qxd1 Kg6 $18)) 38. Ne7+ {[%emt 0:00:08]} (38. Qxd5 $2 Bg4 (38... Qxb2 39. Ne7+ Kg7 40. Rxd1 $11) 39. Ne7+ Kg7 40. Nxc8 Qxc8 $19) (38. Qxd1 $11 Re8 39. Ne7+ Rxe7 40. Rxe7 Qxb2 41. Qd3+ (41. Qxd5 Qc1+ 42. Kh2 Qf4+ 43. Kh1 Qc1+ 44. Kh2 Qf4+ 45. Kg1 Qc1+ 46. Kh2 $11) 41... Kg7 42. Qg3+ Kf8 43. Qc7) 38... Kg7 $16 {[%emt 0:00:03]} 39. Nxc8 {[%emt 0:00:35] Black is on the road to losing.} (39. Rxd1 $6 Re8 40. Nf5+ (40. Nxd5 Qe5 $17) 40... Kg6 $11) 39... Bg4 {[%emt 0:02:56]} 40. Ne7 {[%emt 0:00:14]} Qa7 {[%emt 0:00:37]} 41. Qxd5 {[%emt 0:31:29]} Qa5 {[%emt 0:06:16]} 42. Re3 {[%emt 0:00:00]} Qxd5 {[%emt 0:06:39]} 43. Nxd5 {[%emt 0:00:00][%mdl 4096] Endgame KRB-KRN. White is a pawn up.} Rb8 {[%emt 0:03:36]} 44. Rg3 {[%emt 0:00:00]} Kf8 $2 {[%emt 0:01:45]} (44... Rxb2 $2 45. f3 $18) (44... Kh6 $16) 45. Nxf6 $18 {[%emt 0:00:00]} Rxb2 {[%emt 0:01:18]} 46. Nxg4 {[%emt 0:00:00]} hxg4 {[%emt 0:00:06]} 47. Rxg4 {[%emt 0:00:00]} Rxa2 {[%emt 0:00:03] [#] KR-KR. White is a pawn up.} 48. g3 $1 {[%emt 0:00:00][%cal Bg2g3,Bg3g4][%mdl 32]} a3 {[%emt 0:00:46]} 49. Ra4 {[%emt 0:00:00]} Kg7 {[%emt 0:00:28]} 50. Kg2 {[%emt 0:00:00]} Kh7 $2 {[%emt 0:02:00]} (50... f5 51. Ra8 Kf6 52. Ra6+ Kf7) 51. Ra5 {[%emt 0:00:00]} (51. Ra7 $142) 51... Ra1 $2 {[%emt 0:01:22]} (51... Rc2 {was necessary.} 52. Rxa3 Kg6) 52. Kf3 {[%emt 0:00:00]} Ra2 $2 {[%emt 0:01:25]} (52... Kg7 53. Ra7 Kf6) 53. g4 {[%emt 0:00:11]} Kg7 {[%emt 0:02:33]} 54. Ra6 {[%emt 0:00:20]} Ra1 {[%emt 0:01:00]} 55. h5 {[%emt 0:00:52][%cal Bh4h5,Bh5h6][%mdl 32]} f6 {[%emt 0:05:09]} (55... Rh1 $142 56. Kf4 (56. Rxa3 $2 {too greedy.} Rh3+ 57. Kf4 Rxa3 $19) 56... Rf1) 56. Ra7+ {[%emt 0:01:11][%cal Ba6a7,Ba7f7,Bf7f6][%mdl 32]} Kh6 {[%emt 0:03:08]} 57. Rf7 {[%emt 0:00:56]} Rg1 {[%emt 0:00:14] and ...a2 should not be overlooked} 58. Rxf6+ {[%emt 0:01:28]} Kg5 {[%emt 0:00:22]} 59. Rf5+ {[%emt 0:00:39]} Kh4 {[%emt 0:00:24]} 60. h6 {[%emt 0:00:30] Weighted Error Value: White=0.28 (precise) /Black=0.67  Loses game:     	---       	Black=3      Missed win:     	White=1     	---        Mistake:       	White=4     	Black=4      Inaccurate:     	White=1     	Black=2      OK:         	White=13    	Black=20     Best:        	White=5     	Black=2      Strong:       	White=4     	Black=1      Brilliant:      	White=1     	---} 1-0

[Event "Karel Janecek Open 2025"]
[Site "Prague"]
[Date "2025.03.07"]
[Round "9.8"]
[White "Kraus, Tomas"]
[Black "Gloeckler, Christian"]
[Result "0-1"]
[Annotator "TA"]
[ECO "E51"]
[WhiteElo "2451"]
[BlackElo "2334"]
[PlyCount "60"]
[EventDate "2025.02.21"]
[EventType "swiss"]
[EventCountry "CZE"]
[SourceTitle "playchess.com"]
[Source "ChessBase"]
[SourceQuality "1"]
[TimeControl "40/5400+30:1800+30"]

{[%evp 13,60,-6,0,0,-7,3,-14,1,28,2,0,0,0,10,25,0,0,-29,-45,-80,-29,-49,-36,-75,-66,-52,-59,-154,-141,-219,-187,-236,-242,-237,-154,-247,-229,-258,-255,-250,-236,-240,-183,-213,-181,-365,-366,-381,-381]} 1. d4 {[%emt 0:00:22]} Nf6 {[%emt 0:00:05]} 2. c4 {[%emt 0:00:25]} e6 {[%emt 0:00:06]} 3. Nc3 {[%emt 0:00:27]} Bb4 {[%emt 0:00:07]} 4. Bd2 {[%emt 0:00:23]} O-O {[%emt 0:00:31]} 5. Nf3 {[%emt 0:00:19][%cal Bg1f3,Bf3e5,Be5c6][%mdl 32]} d5 {[%emt 0:00:16]} 6. e3 {[%emt 0:00:24]} b6 {[%emt 0:00:14]} 7. cxd5 {[%emt 0:00:12]} exd5 {[%emt 0:00:05]} 8. Bd3 {[%emt 0:00:05] E51: Nimzo-Indian: Rubinstein: 4...0-0 5 Nf3 d5.} Bd6 {[%emt 0:00:33]} 9. Ne5 {[%emt 0:01:55]} c5 {[%emt 0:01:56]} 10. O-O {[%emt 0:01:32] The position is equal.} Ba6 {[%emt 0:02:19]} 11. Bxa6 $146 {[%emt 0:08:16]} (11. Be1 Bxd3 12. Qxd3 c4 13. Qf5 Qc8 14. Qxc8 Rxc8 15. f3 Bb4 16. Bh4 Bxc3 17. bxc3 {½-½ Nechitailo,N (2252)-Farokhi,K (2306) GER-chT Lands U20 2024 (2)}) 11... Nxa6 {[%emt 0:01:03]} 12. Be1 {[%emt 0:08:53]} Nc7 {[%emt 0:19:57]} 13. Rc1 {[%emt 0:02:20]} Nfe8 {[%emt 0:21:01]} 14. Nc6 {[%emt 0:10:52]} Qd7 {[%emt 0:01:38]} 15. dxc5 {[%emt 0:02:34]} bxc5 {[%emt 0:02:40]} 16. Qa4 {[%emt 0:00:04]} Qe6 {[%emt 0:06:06] Against f4} (16... Nf6 $17) 17. b4 $11 {[%emt 0:10:01]} cxb4 {[%emt 0:02:10]} 18. Ne2 {[%emt 0:02:38] [#]} a5 $40 {[%emt 0:01:14][%mdl 128] Black has some attack.} 19. Ned4 {[%emt 0:01:18]} Qd7 {[%emt 0:01:05]} 20. a3 {[%emt 0:03:28]} bxa3 $17 {[%emt 0:01:47]} 21. Bxa5 {[%emt 0:00:30]} (21. f3 $17) 21... Nf6 $19 {[%emt 0:01:21]} 22. Qb3 {[%emt 0:07:39]} (22. f3 $142) 22... Ne6 {[%emt 0:03:46]} 23. Bc3 {[%emt 0:15:38]} Nc5 {[%emt 0:04:55]} 24. Qa2 {[%emt 0:01:05]} (24. Qb5 $17) 24... Rfc8 {[%emt 0:01:00]} 25. Bb4 {[%emt 0:04:03]} Rxc6 {[%emt 0:07:10]} 26. Nxc6 {[%emt 0:00:05]} Qxc6 {[%emt 0:00:14]} 27. Rc3 {[%emt 0:00:23]} Rb8 {[%emt 0:10:48]} 28. Bxa3 {[%emt 0:06:01]} Qa6 {[%emt 0:01:35]} 29. Qa1 $2 {[%emt 0:05:31]} (29. Rc2 {was worth a try.}) 29... Be5 {[%emt 0:01:26][%cal Of6g4] [#] Threatens to win with ...Ng4!.} 30. Bxc5 {[%emt 0:00:05]} Qxa1 {[%emt 0:00:10] Weighted Error Value: White=0.40/Black=0.16 (very precise)   Mistake:       	White=5     	Black=1      Inaccurate:     	White=4     	Black=2      OK:         	White=4     	Black=10     Best:        	---       	Black=2      Brilliant:      	---       	Black=1} 0-1

[Event "Karel Janecek Open 2025"]
[Site "Prague"]
[Date "2025.03.07"]
[Round "9.9"]
[White "Gkoumas, Georgios"]
[Black "Rubes, Jan"]
[Result "1/2-1/2"]
[Annotator "TA"]
[ECO "C79"]
[WhiteElo "2438"]
[BlackElo "2444"]
[PlyCount "52"]
[EventDate "2025.02.21"]
[EventType "swiss"]
[EventCountry "CZE"]
[SourceTitle "playchess.com"]
[Source "ChessBase"]
[SourceQuality "1"]
[TimeControl "40/5400+30:1800+30"]

{[%evp 15,52,44,37,43,35,5,9,1,12,3,2,0,13,0,14,8,18,12,28,14,0,0,0,0,0,0,0,-6,0,-11,0,0,-1,-12,0,0,0,0,0]} 1. e4 {[%emt 0:03:59]} e5 {[%emt 0:00:06]} 2. Nf3 {[%emt 0:00:08]} Nc6 {[%emt 0:00:05]} 3. Bb5 {[%emt 0:00:05]} a6 {[%emt 0:00:04]} 4. Ba4 {[%emt 0:00:05]} d6 {[%emt 0:00:04]} 5. O-O {[%emt 0:01:17]} Nf6 {[%emt 0:00:09]} 6. Re1 {[%emt 0:01:57]} Bd7 {[%emt 0:03:08]} 7. c3 {[%emt 0:00:06]} g6 {[%emt 0:00:14]} 8. d4 {[%emt 0:00:06]} Bg7 {[%emt 0:00:04]} 9. Nbd2 {[%emt 0:02:46] C79: Ruy Lopez: Steinitz-type lines with 3...a6 4 Ba4 Nf6 5 0-0 d6.} O-O {[%emt 0:00:14]} 10. dxe5 {[%emt 0:02:23]} Nxe5 {[%emt 0:01:41]} 11. Nxe5 {[%emt 0:01:59]} dxe5 {[%emt 0:00:07]} 12. Nf3 {[%emt 0:03:01]} b5 {[%emt 0:07:29]} 13. Bc2 {[%emt 0:06:18]} Qe7 {[%emt 0:01:30]} 14. Qe2 $146 {[%emt 0:02:21]} ({Predecessor:} 14. Bg5 h6 15. Bxf6 Bxf6 16. Qd2 Kg7 17. Rad1 Bg4 18. Qe2 c5 19. h3 Be6 20. b3 {½-½ Grot,B (2098)-Bartel,M (2621) Katowice POL-HUN 10th rapid 2023 (2)}) 14... Nh5 {[%emt 0:05:42]} 15. a4 {[%emt 0:02:51]} h6 {[%emt 0:13:15]} 16. Rd1 {[%emt 0:05:19][%cal Be1d1,Bd1d4,Bd4f4,Bf4f3][%mdl 32]} Rfd8 {[%emt 0:12:52]} 17. Be3 {[%emt 0:04:29]} Nf4 {[%emt 0:15:14] The position is equal.} 18. Bxf4 {[%emt 0:00:14]} exf4 {[%emt 0:00:04]} 19. e5 {[%emt 0:18:49]} Rab8 {[%emt 0:00:17]} 20. axb5 {[%emt 0:03:32]} axb5 {[%emt 0:01:36]} 21. Rd4 {[%emt 0:02:21]} b4 {[%emt 0:03:33]} 22. Rad1 {[%emt 0:10:41]} bxc3 {[%emt 0:00:28]} 23. bxc3 {[%emt 0:08:11][%cal Oe2d3] Threatens to win with Qd3!.} Bg4 {[%emt 0:10:34]} 24. Rxf4 {[%emt 0:00:49]} Bxf3 {[%emt 0:00:38]} 25. Rxd8+ {[%emt 0:02:49]} Rxd8 {[%emt 0:00:08]} 26. Rxf3 {[%emt 0:00:05]} Qxe5 {[%emt 0:02:53] Weighted Error Value: White=0.06 (flawless) /Black=0.04 (flawless)   Inaccurate:     	White=1     	---        OK:         	White=5     	Black=7} 1/2-1/2

[Event "Karel Janecek Open 2025"]
[Site "Prague"]
[Date "2025.03.07"]
[Round "9.10"]
[White "Vetoshko, Volodymyr"]
[Black "Simek, Petr"]
[Result "0-1"]
[Annotator "TA"]
[ECO "A13"]
[WhiteElo "2529"]
[BlackElo "2322"]
[PlyCount "92"]
[EventDate "2025.02.21"]
[EventType "swiss"]
[EventCountry "CZE"]
[SourceTitle "playchess.com"]
[Source "ChessBase"]
[SourceQuality "1"]
[TimeControl "40/5400+30:1800+30"]

{[%evp 9,92,8,15,1,1,-26,22,32,31,20,51,-124,-138,-171,-142,-176,-111,-110,-114,-134,-111,-134,-130,-135,-108,-145,-147,-123,-118,-126,-131,-121,-125,-280,-282,-489,-412,-405,-379,-551,-539,-677,-263,-729,-365,-348,-343,-366,-354,-332,-219,-216,-230,-214,-199,-389,-389,-643,-338,-681,-454,-472,-500,-497,-483,-486,-486,-557,0,0,0,-489,-491,-471,-447,-435,-429,-423,-424,-417,-415,-487,-487,-465,-458]} 1. Nf3 {[%emt 0:01:48]} d5 {[%emt 0:00:08]} 2. e3 {[%emt 0:00:03]} Nf6 {[%emt 0:00:26]} 3. c4 {[%emt 0:00:12]} e6 {[%emt 0:00:08]} 4. b3 {[%emt 0:00:08]} Bd6 {[%emt 0:03:20]} 5. Bb2 {[%emt 0:00:29]} O-O {[%emt 0:00:31]} 6. Nc3 {[%emt 0:01:37] A13: English Opening: 1...e6.} a6 {[%emt 0:04:46]} 7. g4 {[%emt 0:15:38] 7.g4 is setting a new trend.} b6 $146 {[%emt 0:30:30]} (7... Nxg4 $142 8. Rg1 Nf6 (8... Nxh2 9. Nxh2 Bxh2 10. Rh1 $11)) (7... c5 8. Qc2 d4 9. exd4 cxd4 10. Nxd4 e5 11. Nf5 Nc6 12. Ne4 Bxf5 13. Nxf6+ Qxf6 14. Qxf5 {1-0 Sadhwani,R (2653)-Eljanov,P (2672) FIDE World Bl Team Final blitz 2024 (2.1)}) 8. g5 $11 {[%emt 0:04:34] The position is equal.} Ne4 {[%emt 0:00:12]} 9. Qc2 {[%emt 0:03:53]} Bb7 {[%emt 0:07:08]} 10. Nxe4 $2 {[%emt 0:16:28]} (10. Rg1 $14 {keeps the upper hand.} Nd7 11. h4) 10... dxe4 $17 {[%emt 0:00:07]} 11. Qc3 {[%emt 0:00:10][%csl Gb2][%cal Rc3g7]} f6 {[%emt 0:01:21]} 12. Nd4 {[%emt 0:17:28]} Be5 {[%emt 0:00:13]} (12... Qe7 $19 {aiming for ...c5.} 13. Bh3 Be5 14. Bxe6+ Kh8) 13. Qc2 {[%emt 0:01:54]} Qe7 {[%emt 0:01:07]} 14. Bg2 {[%emt 0:15:31]} f5 {[%emt 0:02:36][%cal Oc7c5]} 15. f4 {[%emt 0:01:59] [#]} exf3 $1 {[%emt 0:00:35]} 16. Nxf3 {[%emt 0:01:37]} Be4 {[%emt 0:01:08] Black has more active pieces. The white rooks are passive.} 17. Qc1 {[%emt 0:00:35]} Bxb2 {[%emt 0:00:24]} 18. Qxb2 {[%emt 0:00:00][%cal Od2d3]} Nd7 {[%emt 0:02:03]} 19. O-O {[%emt 0:02:35]} Rad8 {[%emt 0:16:38]} 20. h4 {[%emt 0:00:02]} h6 {[%emt 0:00:07]} 21. gxh6 $2 {[%emt 0:00:55]} (21. Rf2 $17) 21... gxh6 $19 {[%emt 0:00:04]} 22. Nd4 $2 {[%emt 0:08:05]} (22. Rfd1) 22... Bxg2 {[%emt 0:11:18]} (22... Qxh4 23. Nxe6 Rf6 24. d3 Rxe6 25. dxe4 $15) 23. Kxg2 {[%emt 0:00:03]} Kh7 {[%emt 0:00:14]} (23... Qxh4 24. Nf3 Qg4+ 25. Kh1 $19) 24. Kh3 {[%emt 0:00:19]} (24. Nf3 $142 Rg8+ 25. Kh1) 24... Ne5 {[%emt 0:01:10]} 25. Qc2 {[%emt 0:01:43]} Rg8 $2 {[%emt 0:02:59]} (25... Rxd4 26. exd4 Ng6) 26. Rg1 $2 {[%emt 0:01:20]} (26. Nxf5 exf5 27. Qxf5+ Ng6 28. Qf7+ Rg7 29. Qxe7 Rxe7 (29... Nxe7 $2 30. Rf2 $19) 30. Rf2) 26... c5 {[%emt 0:00:52]} 27. Nxf5 {[%emt 0:00:29]} exf5 {[%emt 0:00:05]} 28. Qxf5+ {[%emt 0:00:03]} Kh8 {[%emt 0:00:07]} 29. Rxg8+ {[%emt 0:01:30]} Rxg8 {[%emt 0:00:03]} 30. Rf1 {[%emt 0:00:09]} Nd7 {[%emt 0:06:11] Wards off Qf6+} 31. Rf4 {[%emt 0:01:03] [#]} Qd6 $1 {[%emt 0:04:31]} 32. Qc2 {[%emt 0:02:21]} (32. Qe4 {was necessary.}) 32... Rg7 {[%emt 0:03:33]} 33. a3 $2 {[%emt 0:01:12]} (33. Qf5 Qxd2 34. Qe4) 33... Kg8 {[%emt 0:01:01]} 34. b4 $2 {[%emt 0:00:58]} (34. Qf5) 34... Ne5 {[%emt 0:01:00]} 35. bxc5 {[%emt 0:00:38]} bxc5 {[%emt 0:00:02] ( -> ...Nd3)} 36. Qf5 {[%emt 0:00:27] [#]} Qxd2 $1 {[%emt 0:00:52][%csl Gg7][%cal Rd2g2]} 37. Qf8+ {[%emt 0:00:32]} (37. Qxe5 $2 Qg2#) 37... Kh7 {[%emt 0:00:04][%csl Gg7][%cal Rd2g2]} 38. Qf5+ {[%emt 0:00:05]} Kg8 {[%emt 0:00:34][%csl Gg7][%cal Rd2g2]} 39. Qf8+ {[%emt 0:00:25]} (39. Qxe5 $2 Qg2#) ({Not} 39. Qe6+ $2 Kh7 40. Qf5+ Rg6 $19) 39... Kh7 {[%emt 0:00:03][%csl Gg7][%cal Rd2g2]} 40. Qf5+ {[%emt 0:00:05]} Rg6 {[%emt 0:00:07]} 41. Qe4 {[%emt 0:04:23][%cal Oh4h5] Dodges Qg2+} Qd7+ {[%emt 0:02:58]} 42. Qf5 {[%emt 0:00:55]} Qxf5+ {[%emt 0:01:29]} 43. Rxf5 {[%emt 0:00:02]} Nxc4 {[%emt 0:00:06]} 44. Rxc5 {[%emt 0:00:54]} Nxa3 {[%emt 0:01:23]} ({Much less strong is} 44... Nxe3 45. a4) 45. h5 {[%emt 0:01:10]} Rg5 {[%emt 0:02:10]} 46. Rc7+ {[%emt 0:00:33]} Rg7 {[%emt 0:00:05] Weighted Error Value: White=0.73/Black=0.69  Mistake:       	White=8     	Black=3      Inaccurate:     	White=2     	Black=3      OK:         	White=13    	Black=11     Best:        	White=5     	Black=6      Strong:       	---       	Black=1} 0-1